bitfinex-derivatives/quotes_SOLF0:USTF0_20250909
["timestamp","ask_amount","ask_price","bid_price","bid_amount"]
[1757385093982,0.03422409,212.29,212.24,45.72403974]
[1757385094179,0.03422409,212.29,212.28,7.74]
[1757385094483,5.22962578,212.36,212.28,9.45845312]
[1757385094683,12.46962578,212.36,212.3,1.71845312]
[1757385094878,5.22962578,212.35,212.3,1.71845312]
[1757385095077,5.22962578,212.36,212.3,1.71845312]
[1757385095281,5.22962578,212.36,212.32,1.71845312]
[1757385095585,5.22962578,212.37,212.33,7.74]
[1757385096390,5.22962578,212.37,212.36,9.45845312]
[1757385096586,5.22962578,212.38,212.36,9.45845312]
[1757385097289,5.22962578,212.39,212.36,9.45845312]
[1757385099587,5.22962578,212.39,212.37,7.74]
[1757385100088,5.22962578,212.4,212.37,7.74]
[1757385101292,5.22962578,212.41,212.37,7.74]
[1757385101593,12.46962578,212.41,212.37,7.74]
[1757385102093,5.22962578,212.42,212.4,1.71845312]
[1757385102291,5.22962578,212.42,212.38,1.71845312]
[1757385102497,7.24,212.41,212.38,1.71845312]
[1757385102793,7.24,212.41,212.38,1.75390101]
[1757385102996,5.22962578,212.42,212.39,7.74]
[1757385103592,12.31962578,212.42,212.39,7.15]
[1757385103789,5.22962578,212.45,212.41,7.15]
[1757385104097,12.31962578,212.45,212.42,1.71845312]
[1757385104292,7.09,212.45,212.42,1.71845312]
[1757385105290,7.09,212.45,212.41,1.71845312]
[1757385105897,7.09,212.45,212.41,8.86845312]
[1757385106196,7.09,212.45,212.41,1.71845312]
[1757385106593,7.09,212.45,212.41,8.86845312]
[1757385107393,5.22962578,212.47,212.41,1.71845312]
[1757385107795,5.22962578,212.48,212.45,1.71845312]
[1757385107996,0.03049662,212.46,212.42,0.03219318]
[1757385108397,5.22962578,212.52,212.35,67.94]
[1757385108693,5.22962578,212.52,212.42,0.03266357]
[1757385108897,7.09,212.51,212.42,7.18266357]
[1757385109093,7.09,212.51,212.46,1.71845312]
[1757385109303,7.09,212.52,212.46,1.71845312]
[1757385109701,7.09,212.52,212.35,67.94]
[1757385109702,7.09,212.52,212.48,8.86845312]
[1757385110500,7.09,212.52,212.48,8.89947299]
[1757385111493,1.71845312,212.54,212.48,0.03101987]
[1757385111695,7.09,212.53,212.48,0.03101987]
[1757385112089,1.71845312,212.54,212.48,0.03101987]
[1757385112291,7.09,212.53,212.48,0.03101987]
[1757385112494,1.71845312,212.54,212.48,0.03101987]
[1757385112699,7.09,212.53,212.48,0.03101987]
[1757385112896,1.71845312,212.54,212.48,0.03101987]
[1757385113096,7.09,212.53,212.48,0.03101987]
[1757385113296,1.71845312,212.54,212.48,0.03101987]
[1757385114194,5.22962578,212.56,212.48,0.03101987]
[1757385114398,8.80845312,212.58,212.5,1.71845312]
[1757385114696,7.09,212.55,212.49,1.71845312]
[1757385115901,1.71845312,212.54,212.49,1.71845312]
[1757385116203,1.71845312,212.55,212.49,1.71845312]
[1757385117301,7.09,212.56,212.49,1.71845312]
[1757385117302,8.80845312,212.56,212.49,1.71845312]
[1757385118197,7.09,212.56,212.49,1.71845312]
[1757385118403,8.80845312,212.56,212.49,1.71845312]
[1757385121097,8.80845312,212.56,212.48,0.03101987]
[1757385121098,7.09,212.56,212.51,1.71845312]
[1757385121299,7.09,212.57,212.51,8.86845312]
[1757385122005,7.09,212.57,212.52,0.03423159]
[1757385122206,5.22962578,212.59,212.52,0.03423159]
[1757385122505,7.09,212.63,212.57,1.71845312]
[1757385122705,7.09,212.63,212.59,1.71845312]
[1757385122901,5.22962578,212.64,212.59,1.71845312]
[1757385123108,7.09,212.63,212.59,1.74847709]
[1757385123303,1.71845312,212.6,212.59,0.03002397]
[1757385123504,8.80845312,212.6,212.59,0.03002397]
[1757385124715,9.28845312,212.6,212.59,0.03002397]
[1757385125611,7.57,212.6,212.59,0.03002397]
[1757385125815,9.28845312,212.6,212.59,0.03002397]
[1757385126417,7.09,212.6,212.59,0.03002397]
[1757385127418,12.31962578,212.63,212.59,7.18002397]
[1757385127619,7.09,212.63,212.59,7.18002397]
[1757385128619,7.09,212.63,212.6,1.71845312]
[1757385130518,1.71845312,212.66,212.6,1.71845312]
[1757385130724,7.09,212.65,212.6,1.71845312]
[1757385131325,1.71845312,212.66,212.6,1.71845312]
[1757385131521,7.09,212.64,212.6,1.71845312]
[1757385131723,7.09,212.64,212.6,8.86845312]
[1757385132724,7.09,212.66,212.6,1.71845312]
[1757385133225,7.09,212.66,212.59,1.74847709]
[1757385133420,7.09,212.66,212.59,0.03002397]
[1757385133421,1.71845312,212.65,212.59,0.03002397]
[1757385133620,7.27,212.62,212.59,0.03002397]
[1757385133919,7.27,212.6,212.59,0.03002397]
[1757385141229,8.98845312,212.6,212.59,0.03002397]
[1757385141428,14.2180789,212.6,212.59,0.03002397]
[1757385142028,8.98845312,212.6,212.59,0.03002397]
[1757385142233,14.2180789,212.6,212.59,0.03002397]
[1757385143926,8.98845312,212.6,212.59,0.03002397]
[1757385144630,7.27,212.6,212.59,0.03002397]
[1757385145029,12.49130355,212.6,212.59,0.03002397]
[1757385146230,7.27,212.6,212.59,0.03002397]
[1757385147236,12.49621301,212.6,212.59,0.03002397]
[1757385147433,5.22621301,212.6,212.59,0.03002397]
[1757385147637,5.22621301,212.6,212.59,7.40002397]
[1757385147836,5.22621301,212.61,212.6,7.37]
[1757385148237,7.84544799,212.63,212.6,7.37]
[1757385148437,7.84544799,212.63,212.59,0.03002397]
[1757385148642,5.23165839,212.62,212.6,7.37]
[1757385149143,5.23165839,212.61,212.6,7.37]
[1757385150242,7.84544799,212.64,212.6,7.37]
[1757385150243,5.23165839,212.62,212.6,7.37]
[1757385150442,5.23165839,212.62,212.61,7.37]
[1757385150940,6.95011151,212.62,212.59,0.03002397]
[1757385151243,12.50165839,212.6,212.59,0.03002397]
[1757385151447,7.27,212.6,212.59,0.03002397]
[1757385152543,15.11544799,212.6,212.59,0.03002397]
[1757385153435,7.27,212.6,212.59,0.03002397]
[1757385154445,15.11544799,212.6,212.59,0.03002397]
[1757385156244,7.27,212.6,212.59,0.03002397]
[1757385157243,15.11544799,212.6,212.59,0.03002397]
[1757385158447,7.27,212.6,212.59,0.03002397]
[1757385158643,7.84544799,212.61,212.59,0.03002397]
[1757385158849,15.11544799,212.61,212.59,0.03002397]
[1757385159148,7.84544799,212.61,212.59,0.03002397]
[1757385159948,15.11544799,212.61,212.59,0.03002397]
[1757385160143,7.27,212.6,212.59,0.03002397]
[1757385160744,15.11544799,212.61,212.59,0.03002397]
[1757385161046,7.27,212.6,212.59,0.03002397]
[1757385161450,15.11544799,212.6,212.59,0.03002397]
[1757385166259,7.27,212.6,212.59,0.03002397]
[1757385166459,15.15796106,212.6,212.59,0.03002397]
[1757385171160,7.88796106,212.6,212.59,0.03002397]
[1757385171461,7.88796106,212.6,212.59,7.60002397]
[1757385172056,7.88796106,212.6,212.59,0.03002397]
[1757385172963,15.57796106,212.6,212.59,0.03002397]
[1757385173264,7.88796106,212.6,212.59,0.03002397]
[1757385174161,15.60892322,212.62,212.59,0.03002397]
[1757385174362,7.91892322,212.62,212.59,0.03002397]
[1757385174561,0.03096216,212.62,212.59,0.03002397]
[1757385174764,0.03096216,212.62,212.6,7.57]
[1757385175461,0.03096216,212.62,212.59,0.03002397]
[1757385175651,5.2624288,212.6,212.59,7.60002397]
[1757385175853,5.2624288,212.61,212.6,7.57]
[1757385178463,0.03096216,212.62,212.6,7.57]
[1757385178664,5.26186328,212.61,212.6,7.57]
[1757385178863,12.95186328,212.61,212.59,0.03002397]
[1757385179067,5.26186328,212.6,212.59,0.03002397]
[1757385179664,12.95186328,212.6,212.59,0.03002397]
[1757385179862,15.57796106,212.6,212.59,0.03002397]
[1757385180063,15.58038147,212.6,212.59,0.03002397]
[1757385180264,7.69,212.6,212.59,0.03002397]
[1757385180668,15.5804061,212.6,212.59,0.03002397]
[1757385181167,15.5804061,212.61,212.59,0.03002397]
[1757385181364,7.92136826,212.62,212.59,0.03002397]
[1757385181763,15.5804061,212.61,212.59,0.03002397]
[1757385181962,15.5804061,212.6,212.59,0.03002397]
[1757385182271,7.69,212.6,212.59,0.03002397]
[1757385182572,15.58116805,212.6,212.59,0.03002397]
[1757385182868,7.69,212.6,212.59,0.03002397]
[1757385184070,7.69,212.6,212.5,7.57]
[1757385184266,7.69,212.54,212.5,7.57]
[1757385184770,5.26002064,212.54,212.47,43.0]
[1757385184970,12.95002064,212.52,212.46,50.57]
[1757385185267,7.89003096,212.54,212.46,50.57]
[1757385185268,7.69,212.5,212.46,7.57]
[1757385185470,12.95002064,212.5,212.43,2.67963608]
[1757385186069,12.95002064,212.5,212.42,133.22309278]
[1757385186070,12.95002064,212.48,212.37,7.57]
[1757385186262,2.67963608,212.49,212.37,7.57]
[1757385186263,5.26002064,212.43,212.37,7.57]
[1757385186468,5.26002064,212.44,212.37,7.57]
[1757385187376,12.95002064,212.45,212.37,7.57]
[1757385187858,5.26002064,212.44,212.37,7.57]
[1757385188259,12.95002064,212.45,212.37,7.57]
[1757385189369,7.69,212.45,212.37,7.57]
[1757385189569,12.95002064,212.45,212.37,7.57]
[1757385190164,5.26002064,212.44,212.37,7.57]
[1757385190472,12.95002064,212.45,212.37,7.57]
[1757385190663,5.26002064,212.44,212.37,7.57]
[1757385191164,12.95002064,212.45,212.37,7.57]
[1757385191366,5.26002064,212.46,212.37,7.57]
[1757385191569,5.26002064,212.47,212.39,7.57]
[1757385192163,5.26002064,212.48,212.39,7.57]
[1757385192362,5.26002064,212.48,212.38,2.67963608]
[1757385192363,12.95002064,212.49,212.43,7.57]
[1757385193264,5.26002064,212.51,212.43,10.24963608]
[1757385193470,5.26002064,212.52,212.43,10.24963608]
[1757385195374,13.10002064,212.51,212.43,10.24963608]
[1757385195780,13.10002064,212.5,212.4,2.67963608]
[1757385195983,7.84,212.48,212.39,7.46]
[1757385196171,7.84,212.46,212.34,2.67963608]
[1757385198382,7.84,212.46,212.35,7.46]
[1757385198684,7.84,212.46,212.38,7.46]
[1757385199677,5.26002064,212.5,212.41,7.46]
[1757385199678,7.84,212.5,212.41,7.46]
[1757385200979,7.84,212.5,212.37,10.13963608]
[1757385201174,2.67963608,212.48,212.37,10.13963608]
[1757385201380,7.84,212.47,212.37,10.13963608]
[1757385202283,7.84,212.47,212.37,7.46]
[1757385203383,7.84,212.47,212.33,7.46]
[1757385203579,7.84,212.44,212.33,10.13963608]
[1757385203783,7.84,212.44,212.33,2.67963608]
[1757385203985,7.84,212.44,212.34,7.46]
[1757385204582,7.84,212.44,212.37,7.46]
[1757385207182,2.67963608,212.48,212.37,7.46]
[1757385207386,7.84,212.48,212.39,2.67963608]
[1757385207586,7.84,212.48,212.4,7.46]
[1757385211888,2.67963608,212.49,212.36,10.13963608]
[1757385212085,7.84,212.45,212.36,7.46]
[1757385213089,2.67963608,212.44,212.36,7.46]
[1757385213285,7.84,212.43,212.36,7.46]
[1757385215695,10.51963608,212.47,212.37,7.46]
[1757385216190,7.84,212.47,212.37,7.46]
[1757385216394,9.55722496,212.47,212.4,1.71722496]
[1757385219491,9.55722496,212.47,212.4,9.17722496]
[1757385219692,5.26002064,212.5,212.44,1.71722496]
[1757385219898,1.71722496,212.5,212.44,1.71722496]
[1757385220300,7.84,212.49,212.44,1.71722496]
[1757385220696,1.71722496,212.5,212.44,1.71722496]
[1757385221198,6.9772456,212.5,212.44,1.71722496]
[1757385221393,14.8172456,212.5,212.44,1.71722496]
[1757385222199,14.8172456,212.5,212.43,7.46]
[1757385222895,7.84,212.48,212.42,1.71722496]
[1757385223202,9.55722496,212.48,212.42,1.71722496]
[1757385224297,14.8172456,212.48,212.42,1.71722496]
[1757385224500,7.78,212.45,212.35,76.24]
[1757385224696,7.78,212.45,212.39,1.71722496]
[1757385224892,7.78,212.45,212.36,7.78]
[1757385225096,1.71722496,212.44,212.37,1.71722496]
[1757385225299,1.71722496,212.42,212.36,7.78]
[1757385227398,6.9772456,212.42,212.36,7.78]
[1757385228501,5.26002064,212.41,212.36,7.78]
[1757385228799,7.78,212.4,212.36,7.78]
[1757385229399,13.04002064,212.4,212.36,7.78]
[1757385229699,5.26002064,212.4,212.37,1.71722496]
[1757385229900,7.89003096,212.43,212.3,159.9]
[1757385229901,5.26002064,212.43,212.4,7.78]
[1757385230790,5.26002064,212.42,212.4,7.78]
[1757385231598,5.26002064,212.43,212.4,7.78]
[1757385234503,7.78,212.4,212.29,9.49722496]
[1757385234706,6.97139855,212.37,212.29,9.49722496]
[1757385235405,14.75139855,212.37,212.29,9.49722496]
[1757385235606,5.25417359,212.36,212.29,7.78]
[1757385236410,5.25417359,212.36,212.31,7.78]
[1757385236610,6.97139855,212.37,212.3,9.49722496]
[1757385237106,15.66126038,212.39,212.3,7.78]
[1757385237107,1.71722496,212.35,212.3,7.78]
[1757385237307,7.78,212.34,212.3,7.78]
[1757385239310,1.71722496,212.35,212.29,7.78]
[1757385240507,5.25417359,212.36,212.29,7.78]
[1757385240713,6.97139855,212.37,212.3,1.71722496]
[1757385242907,6.97139855,212.37,212.29,9.49722496]
[1757385243114,7.78,212.34,212.27,1.71722496]
[1757385243311,1.71722496,212.33,212.27,1.71722496]
[1757385245612,7.78,212.34,212.28,7.78]
[1757385246611,7.78,212.35,212.29,1.71722496]
[1757385246807,5.25417359,212.36,212.29,1.71722496]
[1757385247008,6.97139855,212.37,212.29,1.71722496]
[1757385250015,1.71722496,212.37,212.31,1.71722496]
[1757385250417,13.03417359,212.38,212.31,1.71722496]
[1757385250615,7.78,212.38,212.31,1.71722496]
[1757385250910,7.78,212.38,212.33,1.71722496]
[1757385251111,7.78,212.38,212.34,7.78]
[1757385251618,5.25417359,212.4,212.35,1.71722496]
[1757385251821,6.97139855,212.41,212.35,9.49722496]
[1757385252221,1.71722496,212.41,212.35,9.49722496]
[1757385253321,6.97139855,212.41,212.35,9.49722496]
[1757385253619,14.39139855,212.41,212.35,9.49722496]
[1757385253821,14.39139855,212.41,212.35,7.78]
[1757385254120,14.39139855,212.41,212.34,1.71722496]
[1757385254618,14.39139855,212.41,212.22,4.2403]
[1757385254619,7.42,212.38,212.26,7.73]
[1757385254815,7.42,212.36,212.3,1.71722496]
[1757385255523,7.42,212.36,212.26,7.73]
[1757385255720,12.67417359,212.34,212.26,7.73]
[1757385256016,7.42,212.34,212.29,9.44722496]
[1757385256417,7.42,212.34,212.2,39.06]
[1757385256418,7.42,212.34,212.27,1.71722496]
[1757385256619,12.67417359,212.34,212.27,1.71722496]
[1757385256921,14.39139855,212.34,212.27,1.71722496]
[1757385258122,9.13722496,212.34,212.27,1.71722496]
[1757385259819,7.42,212.34,212.27,1.71722496]
[1757385260822,12.67417359,212.34,212.27,1.71722496]
[1757385261924,7.42,212.32,212.26,1.71722496]
[1757385263420,7.42,212.32,212.28,1.71722496]
[1757385263626,14.39139855,212.34,212.28,1.71722496]
[1757385263925,9.13722496,212.34,212.28,1.71722496]
[1757385264923,7.42,212.34,212.28,1.71722496]
[1757385271831,5.25417359,212.34,212.32,1.71722496]
[1757385272028,12.67417359,212.38,212.32,1.71722496]
[1757385272330,7.42,212.38,212.34,9.44722496]
[1757385272730,12.67417359,212.4,212.36,1.71722496]
[1757385272930,7.42,212.4,212.36,9.44722496]
[1757385273329,7.42,212.4,212.37,1.71722496]
[1757385274638,7.42,212.41,212.37,9.44722496]
[1757385274833,7.42,212.41,212.38,1.71722496]
[1757385275033,5.25417359,212.42,212.38,1.71722496]
[1757385275239,7.42,212.41,212.38,1.71722496]
[1757385275942,7.42,212.4,212.38,1.71722496]
[1757385276138,7.42,212.4,212.36,1.71722496]
[1757385276344,7.42,212.37,212.36,1.71722496]
[1757385276645,7.42,212.37,212.31,1.71722496]
[1757385276943,7.42,212.34,212.31,1.71722496]
[1757385278342,12.67066223,212.34,212.3,7.73]
[1757385278842,5.25066223,212.35,212.3,7.73]
[1757385279341,5.25066223,212.35,212.29,2.68543556]
[1757385279543,5.25066223,212.34,212.29,10.41543556]
[1757385279740,5.25066223,212.34,212.3,7.73]
[1757385280240,5.25066223,212.34,212.29,2.68543556]
[1757385280437,5.25066223,212.34,212.3,7.73]
[1757385281032,12.67066223,212.34,212.3,7.73]
[1757385281743,5.25066223,212.34,212.3,7.73]
[1757385282244,5.25066223,212.34,212.29,2.68543556]
[1757385282442,5.25066223,212.34,212.3,7.73]
[1757385282643,5.25066223,212.34,212.29,2.68543556]
[1757385283941,5.25066223,212.36,212.32,2.68543556]
[1757385284137,5.25066223,212.37,212.33,7.24]
[1757385284648,15.73126038,212.36,212.3,2.68543556]
[1757385284947,13.10520856,212.35,212.3,2.68543556]
[1757385285245,13.10520856,212.35,212.31,7.24]
[1757385286346,7.85,212.35,212.31,7.24]
[1757385289845,5.25520856,212.37,212.3,2.68543556]
[1757385290046,5.25520856,212.37,212.31,7.24]
[1757385293754,7.85,212.36,212.3,2.68543556]
[1757385293950,13.10520856,212.36,212.3,2.68543556]
[1757385299657,7.85,212.34,212.3,2.68543556]
[1757385299958,7.85,212.34,212.3,9.92543556]
[1757385300157,5.25520856,212.36,212.3,2.68543556]
[1757385300357,7.85,212.35,212.29,43.0]
[1757385300557,5.25520856,212.35,212.29,43.0]
[1757385300758,13.10520856,212.35,212.29,43.0]
[1757385302564,5.25520856,212.38,212.33,2.68543556]
[1757385302760,13.10520856,212.39,212.33,9.92543556]
[1757385303862,7.85,212.39,212.33,9.92543556]
[1757385304665,13.10520856,212.39,212.33,9.92543556]
[1757385308164,5.25520856,212.38,212.33,9.92543556]
[1757385308461,7.85,212.37,212.33,9.92543556]
[1757385309969,7.85,212.37,212.34,7.24]
[1757385311163,5.25520856,212.38,212.33,2.68543556]
[1757385311364,5.25520856,212.39,212.36,2.68543556]
[1757385311564,5.25520856,212.39,212.37,7.24]
[1757385311768,13.10520856,212.41,212.36,2.68543556]
[1757385311970,116.7,212.5,212.4,7.24]
[1757385311971,5.25520856,212.42,212.4,7.24]
[1757385312165,13.10520856,212.44,212.39,9.92543556]
[1757385312372,7.85,212.43,212.39,9.92543556]
[1757385312571,7.85,212.43,212.4,7.24]
[1757385312773,7.85,212.43,212.39,2.68543556]
[1757385313169,5.25520856,212.44,212.39,2.68543556]
[1757385313374,5.25520856,212.45,212.39,2.68543556]
[1757385313875,12.34520856,212.45,212.39,2.68543556]
[1757385314072,7.09,212.45,212.39,10.43543556]
[1757385315266,5.25520856,212.46,212.43,7.75]
[1757385315468,7.09,212.53,212.41,2.68543556]
[1757385315469,5.25520856,212.51,212.45,2.68543556]
[1757385315664,5.25520856,212.53,212.5,2.68543556]
[1757385315867,7.09,212.52,212.5,2.68543556]
[1757385316274,5.25520856,212.53,212.41,2.68543556]
[1757385316474,5.25520856,212.53,212.42,7.75]
[1757385316676,5.25520856,212.52,212.47,2.68543556]
[1757385316973,7.09,212.51,212.47,2.68543556]
[1757385317474,7.09,212.52,212.47,2.68543556]
[1757385317874,5.25520856,212.53,212.47,2.68543556]
[1757385318069,7.09,212.52,212.47,2.68543556]
[1757385318375,5.25520856,212.53,212.47,2.68543556]
[1757385318978,7.09,212.52,212.44,2.68543556]
[1757385321070,7.09,212.52,212.42,7.75]
[1757385321071,7.09,212.52,212.47,2.68543556]
[1757385321276,7.09,212.52,212.48,7.75]
[1757385321577,7.09,212.54,212.48,7.75]
[1757385325976,12.34520856,212.58,212.51,7.75]
[1757385326273,12.34520856,212.61,212.54,7.75]
[1757385326473,5.25520856,212.6,212.54,7.75]
[1757385326878,12.34520856,212.61,212.54,7.75]
[1757385328274,12.34520856,212.61,212.51,7.75]
[1757385328479,12.34520856,212.59,212.5,2.68543556]
[1757385328676,12.34520856,212.59,212.47,10.43543556]
[1757385328882,5.25520856,212.58,212.47,10.43543556]
[1757385329081,7.09,212.57,212.47,10.43543556]
[1757385329282,7.09,212.56,212.44,10.43543556]
[1757385329481,7.94064412,212.57,212.44,10.43543556]
[1757385329975,7.09,212.56,212.44,10.43543556]
[1757385330175,7.94064412,212.57,212.44,10.43543556]
[1757385330480,7.09,212.56,212.44,10.43543556]
[1757385330781,7.09,212.56,212.47,2.68543556]
[1757385330971,7.09,212.56,212.48,7.75]
[1757385331778,7.09,212.56,212.5,2.68543556]
[1757385332170,12.34520856,212.6,212.51,7.75]
[1757385332369,7.09,212.6,212.51,7.75]
[1757385332779,7.09,212.6,212.53,2.68543556]
[1757385336377,9.77543556,212.6,212.5,2.68543556]
[1757385336580,9.77543556,212.6,212.5,10.43543556]
[1757385336775,7.09,212.6,212.5,10.43543556]
[1757385337583,7.94064412,212.63,212.5,10.43543556]
[1757385338083,7.09,212.62,212.5,10.43543556]
[1757385338281,1.71542462,212.58,212.52,1.71542462]
[1757385338483,7.09,212.57,212.52,1.71542462]
[1757385338880,1.71542462,212.58,212.52,1.71542462]
[1757385339584,8.80542462,212.58,212.52,1.71542462]
[1757385339974,7.09,212.58,212.54,1.71542462]
[1757385340478,1.71542462,212.6,212.54,1.71542462]
[1757385340479,7.09,212.59,212.54,1.71542462]
[1757385340881,8.80542462,212.6,212.54,1.71542462]
[1757385341581,7.09,212.6,212.55,1.71542462]
[1757385341781,1.71542462,212.62,212.55,9.46542462]
[1757385341979,7.09,212.61,212.55,1.71542462]
[1757385342182,7.09,212.59,212.55,1.71542462]
[1757385342581,7.09,212.59,212.53,1.71542462]
[1757385347088,7.61,212.59,212.55,1.71542462]
[1757385347583,7.61,212.6,212.55,1.71542462]
[1757385347785,5.25520856,212.61,212.57,1.71542462]
[1757385347986,12.86520856,212.61,212.57,1.71542462]
[1757385348284,7.61,212.6,212.57,1.71542462]
[1757385348590,5.25520856,212.61,212.57,1.71542462]
[1757385348790,7.61,212.6,212.57,1.71542462]
[1757385349384,5.25520856,212.61,212.57,1.71542462]
[1757385349582,7.61,212.6,212.55,1.71542462]
[1757385349787,5.25520856,212.61,212.55,1.71542462]
[1757385350492,7.61,212.59,212.55,1.71542462]
[1757385351589,5.25520856,212.6,212.55,1.71542462]
[1757385352185,7.61,212.59,212.55,1.71542462]
[1757385352785,5.25520856,212.6,212.55,1.71542462]
[1757385352990,7.61,212.59,212.55,1.71542462]
[1757385353190,5.25520856,212.6,212.55,1.71542462]
[1757385353393,7.61,212.58,212.55,1.71542462]
[1757385355092,7.61,212.57,212.53,1.71542462]
[1757385355291,7.61,212.57,212.53,9.01542462]
[1757385355896,7.61,212.57,212.55,1.71542462]
[1757385356395,12.86520856,212.57,212.55,1.71542462]
[1757385358494,12.86520856,212.56,212.55,1.71542462]
[1757385359998,12.86520856,212.56,212.52,7.3]
[1757385360300,5.25520856,212.55,212.53,1.71542462]
[1757385362499,12.86520856,212.56,212.53,9.01542462]
[1757385363495,12.86520856,212.55,212.53,1.71542462]
[1757385363798,5.25520856,212.55,212.53,1.71542462]
[1757385363994,5.25520856,212.55,212.53,9.01542462]
[1757385364397,5.25520856,212.55,212.53,7.3]
[1757385364695,9.596685,212.55,212.47,52.01542462]
[1757385364900,7.61,212.5,212.47,9.01542462]
[1757385365097,7.61,212.5,212.47,1.71542462]
[1757385365798,12.86799989,212.5,212.47,1.71542462]
[1757385367101,12.86799989,212.5,212.47,9.01542462]
[1757385367598,5.25799989,212.5,212.49,1.71542462]
[1757385367803,5.25799989,212.51,212.49,1.71542462]
[1757385368005,5.25799989,212.52,212.49,1.71542462]
[1757385368204,5.25799989,212.53,212.52,9.01542462]
[1757385368407,5.25799989,212.55,212.52,9.01542462]
[1757385368702,12.86799989,212.54,212.52,1.71542462]
[1757385369002,7.61,212.53,212.52,1.71542462]
[1757385369205,5.25799989,212.54,212.52,1.71542462]
[1757385369406,5.25799989,212.54,212.52,9.01542462]
[1757385370406,5.25799989,212.55,212.52,9.01542462]
[1757385370703,5.25799989,212.55,212.54,9.01542462]
[1757385370901,5.25799989,212.56,212.55,7.3]
[1757385371096,5.25799989,212.56,212.55,9.01542462]
[1757385371609,5.25799989,212.56,212.55,7.3]
[1757385371909,5.25799989,212.56,212.55,9.01542462]
[1757385372710,5.25799989,212.56,212.55,1.71542462]
[1757385374110,7.73,212.55,212.51,7.3]
[1757385374306,12.99083456,212.55,212.54,1.71542462]
[1757385374508,5.26083456,212.55,212.54,1.71542462]
[1757385374709,5.26083456,212.56,212.54,1.71542462]
[1757385375014,7.73,212.55,212.54,1.71542462]
[1757385375213,12.99083456,212.56,212.54,1.71542462]
[1757385375815,7.73,212.55,212.54,1.71542462]
[1757385379808,7.88126038,212.57,212.51,7.3]
[1757385380015,5.25619354,212.53,212.51,7.3]
[1757385380513,5.25619354,212.54,212.49,7.43]
[1757385380709,5.25619354,212.54,212.5,7.43]
[1757385381114,5.25619354,212.54,212.53,1.71542462]
[1757385381315,5.25619354,212.54,212.53,9.14542462]
[1757385381523,5.25619354,212.55,212.53,9.14542462]
[1757385384425,5.25619354,212.55,212.53,1.71542462]
[1757385384723,5.25619354,212.54,212.53,1.71542462]
[1757385385625,7.73,212.54,212.53,1.71542462]
[1757385388229,5.25869144,212.55,212.54,7.43]
[1757385388432,5.29087234,212.56,212.54,7.43]
[1757385388633,5.29087234,212.56,212.55,1.71542462]
[1757385389432,13.02087234,212.56,212.55,1.71542462]
[1757385394036,7.73,212.55,212.52,0.03246476]
[1757385394238,7.73,212.53,212.52,0.03246476]
[1757385395038,7.73,212.53,212.52,1.74788938]
[1757385398542,7.73,212.53,212.52,0.03246476]
[1757385399145,5.25482742,212.54,212.53,7.43]
[1757385399446,5.25482742,212.55,212.53,10.11027894]
[1757385399843,5.28700832,212.56,212.54,7.43]
[1757385400548,0.0321809,212.56,212.53,2.68027894]
[1757385400840,0.0321809,212.56,212.55,2.68027894]
[1757385401040,0.0321809,212.56,212.55,10.11027894]
[1757385407748,5.25482742,212.6,212.56,7.8]
[1757385407951,5.25482742,212.6,212.59,2.68027894]
[1757385408151,12.93482742,212.6,212.59,2.68027894]
[1757385409357,7.68,212.6,212.59,2.68027894]
[1757385409745,5.25482742,212.61,212.59,2.68027894]
[1757385409950,12.93482742,212.61,212.59,2.68027894]
[1757385410946,5.25482742,212.61,212.59,2.68027894]
[1757385411150,10.39547659,212.69,212.59,2.68027894]
[1757385411151,12.93482742,212.6,212.59,2.68027894]
[1757385411853,7.68,212.6,212.59,2.68027894]
[1757385412055,7.68,212.6,212.58,2.68027894]
[1757385412256,12.93482742,212.6,212.58,2.68027894]
[1757385412952,7.68,212.6,212.58,2.68027894]
[1757385413256,5.25482742,212.61,212.58,10.48027894]
[1757385413457,12.93482742,212.61,212.58,10.48027894]
[1757385413959,5.25482742,212.61,212.58,2.68027894]
[1757385414161,5.25482742,212.62,212.59,7.8]
[1757385414857,5.25482742,212.63,212.58,2.68027894]